[Event "Turkish Cup 2022"]
[Site "Sakarya"]
[Date "2022.03.25"]
[Round "1.46"]
[White "Kocakaplan, Emre"]
[Black "Akdemir, Hamza Efe"]
[Result "1-0"]
[ECO "A29"]
[WhiteElo "1846"]
[BlackElo "1277"]
[Annotator "NA"]
[PlyCount "69"]
[EventDate "2022.03.25"]
[EventType "swiss"]
[EventCountry "TUR"]
[SourceTitle "playchess.com"]
[Source "ChessBase"]
[SourceQuality "1"]
[TimeControl "5400+30"]

1. c4 {[%emt 0:01:00]} e5 {[%emt 0:01:00]} 2. Nc3 {[%emt 0:00:30]} Nf6 {[%emt 0:00:30]} 3. Nf3 {[%emt 0:00:00]} Nc6 {[%emt 0:00:00]} 4. g3 {[%emt 0:00:00]} d5 {[%emt 0:00:00]} 5. cxd5 {[%emt 0:00:00]} Nxd5 {[%emt 0:00:30]} 6. Bg2 {[%emt 0:00:00]} Nb6 {[%emt 0:00:30]} 7. O-O {[%emt 0:00:00]} Be7 {[%emt 0:00:00]} 8. a3 {[%emt 0:04:00]} O-O {[%emt 0:01:00]} 9. b4 {[%emt 0:00:30]} f6 {[%emt 0:02:30]} 10. d3 {[%emt 0:06:30]} Be6 {[%emt 0:10:30]} 11. Rb1 {[%emt 0:04:30]} Qc8 {[%emt 0:08:30]} 12. Bb2 {[%emt 0:09:30]} Bh3 {[%emt 0:04:30]} 13. Ne4 {[%emt 0:05:30]} Bxg2 {[%emt 0:01:30]} 14. Kxg2 {[%emt 0:00:30]} Rd8 {[%emt 0:02:30]} 15. Qb3+ {[%emt 0:01:30]} Kh8 {[%emt 0:01:30]} 16. Rfc1 {[%emt 0:02:30]} a5 {[%emt 0:15:30]} 17. b5 {[%emt 0:14:30]} Nd4 {[%emt 0:01:30]} 18. Nxd4 {[%emt 0:13:30]} exd4 {[%emt 0:00:30]} 19. Qc2 {[%emt 0:03:30]} Nd5 {[%emt 0:10:30]} 20. Qd2 {[%emt 0:08:30]} Qd7 {[%emt 0:05:30]} 21. Nc5 {[%emt 0:04:30]} Bxc5 {[%emt 0:03:30]} 22. Rxc5 {[%emt 0:00:00]} b6 {[%emt 0:09:48]} 23. Rcc1 {[%emt 0:04:15]} Ne7 {[%emt 0:02:23]} 24. a4 {[%emt 0:02:02]} Rac8 {[%emt 0:02:27]} 25. Rc4 {[%emt 0:02:08]} Qd5+ {[%emt 0:03:16]} 26. Kg1 {[%emt 0:00:28]} Nf5 {[%emt 0:11:20]} 27. Rbc1 {[%emt 0:00:52]} Rd7 {[%emt 0:02:00]} 28. Qf4 {[%emt 0:01:20]} g5 {[%emt 0:00:42]} 29. Qe4 {[%emt 0:01:33]} Qxe4 {[%emt 0:00:39]} 30. dxe4 {[%emt 0:00:02]} Nd6 {[%emt 0:00:13]} 31. Rxd4 {[%emt 0:00:54]} Re8 {[%emt 0:00:32]} 32. f3 {[%emt 0:00:28]} Kg7 {[%emt 0:00:10]} 33. Rd5 {[%emt 0:00:32]} h5 {[%emt 0:01:00]} 34. Rxg5+ {[%emt 0:00:17]} Kh6 {[%emt 0:00:23]} 35. Rd5 {[%emt 0:00:29]} 1-0

[Event "Turkish Cup 2022"]
[Site "Sakarya"]
[Date "2022.03.25"]
[Round "1.47"]
[White "Tokan, Melih"]
[Black "Isik, Kadri"]
[Result "0-1"]
[ECO "B95"]
[WhiteElo "1321"]
[BlackElo "1858"]
[Annotator "NA"]
[PlyCount "48"]
[EventDate "2022.03.25"]
[EventType "swiss"]
[EventCountry "TUR"]
[SourceTitle "playchess.com"]
[Source "ChessBase"]
[SourceQuality "1"]
[TimeControl "5400+30"]

1. e4 {[%emt 0:01:00]} c5 {[%emt 0:01:00]} 2. Nf3 {[%emt 0:00:30]} d6 {[%emt 0:00:30]} 3. d4 {[%emt 0:00:30]} cxd4 {[%emt 0:00:00]} 4. Nxd4 {[%emt 0:00:00]} Nf6 {[%emt 0:00:00]} 5. Nc3 {[%emt 0:00:00]} a6 {[%emt 0:00:30]} 6. Bg5 {[%emt 0:00:30]} e6 {[%emt 0:00:30]} 7. f4 {[%emt 0:00:30]} Nbd7 {[%emt 0:00:00]} 8. Qd2 {[%emt 0:03:30]} Qc7 {[%emt 0:00:00]} 9. O-O-O {[%emt 0:05:30]} b5 {[%emt 0:00:30]} 10. Bxf6 {[%emt 0:02:30]} gxf6 {[%emt 0:01:30]} 11. f5 {[%emt 0:10:30]} Nc5 {[%emt 0:10:30]} 12. fxe6 {[%emt 0:34:30]} fxe6 {[%emt 0:00:00]} 13. Qe2 {[%emt 0:24:25]} h5 {[%emt 0:07:00]} 14. Qf3 {[%emt 0:00:31]} b4 {[%emt 0:02:30]} 15. Qxf6 {[%emt 0:05:28]} Rh6 {[%emt 0:00:30]} 16. Ncb5 {[%emt 0:05:20]} axb5 {[%emt 0:04:30]} 17. Nxb5 {[%emt 0:00:18]} Qd8 {[%emt 0:35:30]} 18. Nxd6+ {[%emt 0:01:52]} Qxd6 {[%emt 0:01:30]} 19. Rxd6 {[%emt 0:01:50]} Rxf6 {[%emt 0:00:30]} 20. Rb6 {[%emt 0:00:36]} Nxe4 {[%emt 0:02:30]} 21. Be2 {[%emt 0:00:27]} Bh6+ {[%emt 0:03:30]} 22. Kb1 {[%emt 0:00:26]} Nd2+ {[%emt 0:00:30]} 23. Ka1 {[%emt 0:00:32]} Rf5 {[%emt 0:00:30]} 24. Rxb4 {[%emt 0:00:38]} Rxa2+ {[%emt 0:00:00]} 0-1

[Event "Turkish Cup 2022"]
[Site "Sakarya"]
[Date "2022.03.26"]
[Round "2.11"]
[White "Yaran, Siar"]
[Black "Ercan, Mehmet Fahri"]
[Result "1-0"]
[ECO "A18"]
[WhiteElo "2272"]
[BlackElo "1775"]
[Annotator "ChessBase"]
[PlyCount "77"]
[EventDate "2022.03.25"]
[EventType "swiss"]
[EventCountry "TUR"]
[SourceTitle "playchess.com"]
[Source "ChessBase"]
[SourceQuality "1"]
[TimeControl "5400+30"]

1. c4 {[%emt 0:01:00]} e6 {[%emt 0:11:00]} 2. Nc3 {[%emt 0:01:30]} Nf6 {[%emt 0:02:30]} 3. e4 {[%emt 0:00:00]} d5 {[%emt 0:05:30]} 4. e5 {[%emt 0:00:00]} d4 {[%emt 0:01:30]} 5. exf6 {[%emt 0:00:30]} dxc3 {[%emt 0:00:30]} 6. bxc3 {[%emt 0:00:00]} Qxf6 {[%emt 0:02:30]} 7. d4 {[%emt 0:00:00]} c5 {[%emt 0:01:30]} 8. Nf3 {[%emt 0:00:30]} h6 {[%emt 0:00:30]} 9. Bd3 {[%emt 0:03:30]} cxd4 {[%emt 0:04:30]} 10. cxd4 {[%emt 0:00:30]} Bb4+ {[%emt 0:00:30]} 11. Bd2 {[%emt 0:00:30]} Bxd2+ {[%emt 0:00:30]} 12. Qxd2 {[%emt 0:00:00]} Nc6 {[%emt 0:03:30]} 13. Be4 {[%emt 0:10:00]} O-O {[%emt 0:06:30]} 14. O-O {[%emt 0:05:30]} Rd8 {[%emt 0:00:30]} 15. Bxc6 {[%emt 0:21:30]} bxc6 {[%emt 0:00:30]} 16. Qe3 {[%emt 0:14:30]} Bb7 {[%emt 0:25:30]} 17. Rab1 {[%emt 0:03:30]} Rd7 {[%emt 0:01:30]} 18. Ne5 {[%emt 0:01:30]} Rc7 {[%emt 0:00:30]} 19. c5 {[%emt 0:00:30]} Qf5 {[%emt 0:07:30]} 20. Nc4 {[%emt 0:10:30]} Qd5 {[%emt 0:08:07]} 21. Nd6 {[%emt 0:00:00]} Bc8 {[%emt 0:00:06]} 22. Rb2 {[%emt 0:02:00]} Rd7 {[%emt 0:01:39]} 23. Re1 {[%emt 0:04:30]} Ba6 {[%emt 0:02:56]} 24. h3 {[%emt 0:04:40]} Rad8 {[%emt 0:01:20]} 25. Rd2 {[%emt 0:02:59]} Bc8 {[%emt 0:04:10]} 26. Qf4 {[%emt 0:01:19]} f6 {[%emt 0:00:52]} 27. Qe4 {[%emt 0:04:43]} Qxe4 {[%emt 0:05:36]} 28. Rxe4 {[%emt 0:00:30]} Re7 {[%emt 0:00:01]} 29. f4 {[%emt 0:00:05]} g6 {[%emt 0:00:23]} 30. Rde2 {[%emt 0:04:22]} Bd7 {[%emt 0:00:47]} 31. Rb2 {[%emt 0:00:30]} Be8 {[%emt 0:00:00]} 32. f5 {[%emt 0:01:40]} gxf5 {[%emt 0:01:56]} 33. Nxf5 {[%emt 0:00:10]} Rh7 {[%emt 0:01:03]} 34. Rxe6 {[%emt 0:00:09]} Bd7 {[%emt 0:00:29]} 35. Rd6 {[%emt 0:00:58]} Re8 {[%emt 0:00:23]} 36. Rf2 {[%emt 0:01:21]} Re6 {[%emt 0:00:38]} 37. Nxh6+ {[%emt 0:00:45]} Kf8 {[%emt 0:00:53]} 38. Rxf6+ {[%emt 0:01:13]} Ke7 {[%emt 0:00:39]} 39. Ng8+ {[%emt 0:00:19]} 1-0

[Event "Turkish Cup 2022"]
[Site "Sakarya"]
[Date "2022.03.26"]
[Round "2.12"]
[White "Gur, Tuba"]
[Black "Danaci, Ege"]
[Result "1-0"]
[ECO "D05"]
[WhiteElo "1750"]
[BlackElo "2264"]
[Annotator "ChessBase"]
[PlyCount "61"]
[EventDate "2022.03.25"]
[EventType "swiss"]
[EventCountry "TUR"]
[SourceTitle "playchess.com"]
[Source "ChessBase"]
[SourceQuality "1"]
[TimeControl "5400+30"]

1. d4 {[%emt 0:01:00]} Nf6 {[%emt 0:01:00]} 2. Nf3 {[%emt 0:00:00]} e6 {[%emt 0:01:30]} 3. e3 {[%emt 0:01:00]} d5 {[%emt 0:00:30]} 4. Bd3 {[%emt 0:00:30]} c5 {[%emt 0:00:00]} 5. b3 {[%emt 0:03:30]} Nc6 {[%emt 0:01:00]} 6. a3 {[%emt 0:02:30]} Bd6 {[%emt 0:00:30]} 7. Bb2 {[%emt 0:02:30]} Qc7 {[%emt 0:01:30]} 8. Nbd2 {[%emt 0:05:30]} Bd7 {[%emt 0:05:30]} 9. dxc5 {[%emt 0:11:30]} Bxc5 {[%emt 0:00:00]} 10. c4 {[%emt 0:00:30]} Be7 {[%emt 0:10:00]} 11. Rc1 {[%emt 0:02:30]} Rc8 {[%emt 0:01:30]} 12. O-O {[%emt 0:01:30]} Qb8 {[%emt 0:00:30]} 13. e4 {[%emt 0:03:30]} dxc4 {[%emt 0:11:30]} 14. Nxc4 {[%emt 0:01:30]} O-O {[%emt 0:00:30]} 15. Nfe5 {[%emt 0:10:30]} b5 {[%emt 0:04:30]} 16. Nxd7 {[%emt 0:10:30]} Nxd7 {[%emt 0:00:30]} 17. Ne3 {[%emt 0:00:30]} Nce5 {[%emt 0:04:30]} 18. Rxc8 {[%emt 0:02:30]} Rxc8 {[%emt 0:00:30]} 19. Bb1 {[%emt 0:03:30]} Nc5 {[%emt 0:01:30]} 20. f4 {[%emt 0:09:30]} Nc6 {[%emt 0:00:30]} 21. Qg4 {[%emt 0:01:30]} Bf8 {[%emt 0:01:30]} 22. f5 {[%emt 0:06:43]} Ne5 {[%emt 0:08:30]} 23. Qh5 {[%emt 0:03:38]} Bd6 {[%emt 0:08:30]} 24. fxe6 {[%emt 0:05:26]} fxe6 {[%emt 0:00:30]} 25. b4 {[%emt 0:02:15]} Ncd7 {[%emt 0:07:30]} 26. Ba2 {[%emt 0:00:19]} Nf8 {[%emt 0:00:30]} 27. Nf5 {[%emt 0:02:37]} Neg6 {[%emt 0:10:54]} 28. Nxg7 {[%emt 0:02:13]} Qb6+ {[%emt 0:06:35]} 29. Kh1 {[%emt 0:00:15]} Rc4 {[%emt 0:12:27]} 30. Ne8 {[%emt 0:02:40]} Be7 {[%emt 0:00:55]} 31. Qh6 {[%emt 0:00:13]} 1-0

[Event "Turkish Cup 2022"]
[Site "Sakarya"]
[Date "2022.03.26"]
[Round "2.13"]
[White "Kirilmaz, Emre"]
[Black "Tocoglu, Onur"]
[Result "1-0"]
[ECO "D00"]
[WhiteElo "2229"]
[BlackElo "1798"]
[Annotator "ChessBase"]
[PlyCount "73"]
[EventDate "2022.03.25"]
[EventType "swiss"]
[EventCountry "TUR"]
[SourceTitle "playchess.com"]
[Source "ChessBase"]
[SourceQuality "1"]
[TimeControl "5400+30"]

1. d4 {[%emt 0:09:00]} Nf6 {[%emt 0:01:00]} 2. c3 {[%emt 0:01:30]} d5 {[%emt 0:00:30]} 3. Bg5 {[%emt 0:00:00]} Ne4 {[%emt 0:00:30]} 4. Bf4 {[%emt 0:00:00]} c5 {[%emt 0:00:30]} 5. f3 {[%emt 0:00:00]} Nf6 {[%emt 0:00:30]} 6. dxc5 {[%emt 0:00:00]} a5 {[%emt 0:04:30]} 7. b4 {[%emt 0:08:30]} axb4 {[%emt 0:16:30]} 8. cxb4 {[%emt 0:06:30]} Nc6 {[%emt 0:01:30]} 9. Bd2 {[%emt 0:01:30]} b6 {[%emt 0:06:30]} 10. b5 {[%emt 0:01:30]} Na5 {[%emt 0:08:30]} 11. c6 {[%emt 0:01:30]} e5 {[%emt 0:01:30]} 12. e3 {[%emt 0:29:30]} Bc5 {[%emt 0:04:30]} 13. Nc3 {[%emt 0:04:30]} d4 {[%emt 0:05:30]} 14. Na4 {[%emt 0:00:30]} Bd6 {[%emt 0:20:30]} 15. Bd3 {[%emt 0:04:30]} Be6 {[%emt 0:09:48]} 16. exd4 {[%emt 0:04:30]} exd4 {[%emt 0:01:11]} 17. Ne2 {[%emt 0:02:30]} Nc4 {[%emt 0:01:18]} 18. Bc1 {[%emt 0:05:30]} Ne5 {[%emt 0:05:30]} 19. Nb2 {[%emt 0:01:10]} Bb4+ {[%emt 0:01:45]} 20. Kf2 {[%emt 0:01:07]} O-O {[%emt 0:05:42]} 21. Bf4 {[%emt 0:02:13]} Qd5 {[%emt 0:02:03]} 22. a4 {[%emt 0:08:47]} Bc3 {[%emt 0:00:20]} 23. Rb1 {[%emt 0:00:46]} Bxb2 {[%emt 0:00:42]} 24. Rxb2 {[%emt 0:00:34]} Nxd3+ {[%emt 0:00:43]} 25. Qxd3 {[%emt 0:00:30]} Rxa4 {[%emt 0:00:00]} 26. Rd1 {[%emt 0:01:29]} Bf5 {[%emt 0:00:21]} 27. Qd2 {[%emt 0:00:00]} d3 {[%emt 0:00:53]} 28. Nc3 {[%emt 0:00:23]} Qd4+ {[%emt 0:00:30]} 29. Be3 {[%emt 0:00:30]} Qh4+ {[%emt 0:00:30]} 30. Kg1 {[%emt 0:00:00]} Rc4 {[%emt 0:00:46]} 31. Bxb6 {[%emt 0:01:01]} Re8 {[%emt 0:00:13]} 32. Bf2 {[%emt 0:00:27]} Qh5 {[%emt 0:00:33]} 33. b6 {[%emt 0:01:46]} Rxc6 {[%emt 0:00:58]} 34. b7 {[%emt 0:00:30]} Nd7 {[%emt 0:00:00]} 35. Bg3 {[%emt 0:01:50]} Nb8 {[%emt 0:01:11]} 36. Bxb8 {[%emt 0:01:46]} Rxb8 {[%emt 0:00:01]} 37. Qf4 {[%emt 0:00:05]} 1-0

[Event "Turkish Cup 2022"]
[Site "Sakarya"]
[Date "2022.03.26"]
[Round "2.14"]
[White "Sezis, Doruk"]
[Black "Kilic, Efe Mert"]
[Result "1/2-1/2"]
[ECO "A29"]
[WhiteElo "1566"]
[BlackElo "2220"]
[Annotator "ChessBase"]
[PlyCount "74"]
[EventDate "2022.03.25"]
[EventType "swiss"]
[EventCountry "TUR"]
[SourceTitle "playchess.com"]
[Source "ChessBase"]
[SourceQuality "1"]
[TimeControl "5400+30"]

1. c4 {[%emt 0:01:00]} e5 {[%emt 0:01:00]} 2. Nc3 {[%emt 0:00:30]} Nf6 {[%emt 0:00:30]} 3. g3 {[%emt 0:00:30]} d5 {[%emt 0:00:00]} 4. cxd5 {[%emt 0:00:00]} Nxd5 {[%emt 0:00:00]} 5. Bg2 {[%emt 0:00:00]} Nb6 {[%emt 0:00:30]} 6. Nf3 {[%emt 0:00:30]} Nc6 {[%emt 0:00:30]} 7. O-O {[%emt 0:00:30]} Be7 {[%emt 0:00:30]} 8. Rb1 {[%emt 0:00:00]} f6 {[%emt 0:13:30]} 9. d3 {[%emt 0:00:00]} Be6 {[%emt 0:00:30]} 10. Be3 {[%emt 0:00:30]} Nd4 {[%emt 0:26:30]} 11. b4 {[%emt 0:02:30]} c6 {[%emt 0:09:30]} 12. a4 {[%emt 0:07:30]} O-O {[%emt 0:03:30]} 13. Bxd4 {[%emt 0:03:30]} exd4 {[%emt 0:00:30]} 14. Ne4 {[%emt 0:00:00]} Rb8 {[%emt 0:05:30]} 15. Qc2 {[%emt 0:01:00]} Bf7 {[%emt 0:06:30]} 16. Nc5 {[%emt 0:07:30]} Re8 {[%emt 0:04:30]} 17. Rfc1 {[%emt 0:00:30]} Nd7 {[%emt 0:09:59]} 18. Qb2 {[%emt 0:02:30]} Bxc5 {[%emt 0:08:21]} 19. bxc5 {[%emt 0:00:30]} b6 {[%emt 0:00:50]} 20. cxb6 {[%emt 0:00:30]} Rxb6 {[%emt 0:02:40]} 21. Qxd4 {[%emt 0:00:30]} c5 {[%emt 0:00:33]} 22. Qc3 {[%emt 0:05:30]} Rxe2 {[%emt 0:00:24]} 23. d4 {[%emt 0:00:00]} Qf8 {[%emt 0:04:33]} 24. Rb5 {[%emt 0:08:00]} c4 {[%emt 0:00:50]} 25. Bf1 {[%emt 0:03:30]} Ra2 {[%emt 0:00:13]} 26. Bxc4 {[%emt 0:00:30]} Rxa4 {[%emt 0:00:30]} 27. Bxf7+ {[%emt 0:00:30]} Qxf7 {[%emt 0:00:00]} 28. Qc8+ {[%emt 0:01:30]} Nf8 {[%emt 0:00:12]} 29. Rxb6 {[%emt 0:00:30]} axb6 {[%emt 0:00:00]} 30. Qc6 {[%emt 0:00:00]} Qb3 {[%emt 0:01:59]} 31. d5 {[%emt 0:02:00]} b5 {[%emt 0:00:55]} 32. d6 {[%emt 0:00:30]} Qd3 {[%emt 0:00:10]} 33. Re1 {[%emt 0:09:30]} Ra3 {[%emt 0:00:01]} 34. Kg2 {[%emt 0:01:30]} Rc3 {[%emt 0:00:28]} 35. Qb7 {[%emt 0:00:30]} Qxd6 {[%emt 0:00:56]} 36. Re7 {[%emt 0:00:30]} Ne6 {[%emt 0:00:45]} 37. Qa8+ {[%emt 0:00:30]} Nf8 {[%emt 0:00:10]} 1/2-1/2

[Event "Turkish Cup 2022"]
[Site "Sakarya"]
[Date "2022.03.26"]
[Round "2.15"]
[White "Gulbeyaz, Emir"]
[Black "Camdereli, Gunduz"]
[Result "1-0"]
[ECO "D80"]
[WhiteElo "2218"]
[BlackElo "1737"]
[Annotator "ChessBase"]
[PlyCount "41"]
[EventDate "2022.03.25"]
[EventType "swiss"]
[EventCountry "TUR"]
[SourceTitle "playchess.com"]
[Source "ChessBase"]
[SourceQuality "1"]
[TimeControl "5400+30"]

1. d4 {[%emt 0:05:00]} Nf6 {[%emt 0:02:00]} 2. c4 {[%emt 0:00:00]} g6 {[%emt 0:01:30]} 3. Nc3 {[%emt 0:00:00]} d5 {[%emt 0:00:30]} 4. h4 {[%emt 0:00:30]} Bg7 {[%emt 0:04:30]} 5. h5 {[%emt 0:00:00]} Ne4 {[%emt 0:16:30]} 6. Nxd5 {[%emt 0:02:00]} e6 {[%emt 0:10:30]} 7. Nc3 {[%emt 0:08:30]} Nxc3 {[%emt 0:14:30]} 8. bxc3 {[%emt 0:00:30]} c5 {[%emt 0:00:00]} 9. Nf3 {[%emt 0:00:00]} Nc6 {[%emt 0:02:00]} 10. e3 {[%emt 0:02:00]} O-O {[%emt 0:06:30]} 11. Be2 {[%emt 0:00:30]} e5 {[%emt 0:08:30]} 12. d5 {[%emt 0:04:30]} e4 {[%emt 0:01:30]} 13. Nd2 {[%emt 0:00:30]} Bxc3 {[%emt 0:06:30]} 14. Rb1 {[%emt 0:00:30]} Ne5 {[%emt 0:06:20]} 15. Qc2 {[%emt 0:09:30]} Qf6 {[%emt 0:13:24]} 16. Rb3 {[%emt 0:04:30]} Ba5 {[%emt 0:01:40]} 17. Bb2 {[%emt 0:03:30]} Bf5 {[%emt 0:00:32]} 18. g4 {[%emt 0:00:30]} Nd3+ {[%emt 0:01:39]} 19. Bxd3 {[%emt 0:01:30]} exd3 {[%emt 0:00:07]} 20. Qd1 {[%emt 0:02:30]} Bxg4 {[%emt 0:01:14]} 21. Bxf6 {[%emt 0:00:30]} 1-0

[Event "Turkish Cup 2022"]
[Site "Sakarya"]
[Date "2022.03.26"]
[Round "2.16"]
[White "Colak, Tugay"]
[Black "Yazici, Ugur Doga"]
[Result "0-1"]
[ECO "E38"]
[WhiteElo "1701"]
[BlackElo "2195"]
[Annotator "ChessBase"]
[PlyCount "91"]
[EventDate "2022.03.25"]
[EventType "swiss"]
[EventCountry "TUR"]
[SourceTitle "playchess.com"]
[Source "ChessBase"]
[SourceQuality "1"]
[TimeControl "5400+30"]

1. d4 {[%emt 0:01:00]} e6 {[%emt 0:01:00]} 2. c4 {[%emt 0:00:30]} Nf6 {[%emt 0:00:00]} 3. Nc3 {[%emt 0:01:30]} Bb4 {[%emt 0:01:00]} 4. Qc2 {[%emt 0:00:30]} O-O {[%emt 0:00:30]} 5. Nf3 {[%emt 0:03:30]} d5 {[%emt 0:01:30]} 6. e3 {[%emt 0:02:30]} c5 {[%emt 0:02:30]} 7. dxc5 {[%emt 0:10:30]} Nc6 {[%emt 0:00:30]} 8. a3 {[%emt 0:07:30]} Bxc3+ {[%emt 0:02:30]} 9. Qxc3 {[%emt 0:03:30]} Ne4 {[%emt 0:05:30]} 10. Qc2 {[%emt 0:00:00]} Qa5+ {[%emt 0:05:30]} 11. Bd2 {[%emt 0:02:00]} Qxc5 {[%emt 0:01:30]} 12. b4 {[%emt 0:06:30]} Qd6 {[%emt 0:01:30]} 13. Bd3 {[%emt 0:03:30]} Nxd2 {[%emt 0:02:30]} 14. Nxd2 {[%emt 0:06:30]} h6 {[%emt 0:01:30]} 15. O-O {[%emt 0:01:30]} Bd7 {[%emt 0:07:30]} 16. c5 {[%emt 0:03:30]} Qc7 {[%emt 0:04:30]} 17. e4 {[%emt 0:03:30]} Qf4 {[%emt 0:08:30]} 18. Nb3 {[%emt 0:08:30]} Ne5 {[%emt 0:02:30]} 19. exd5 {[%emt 0:03:30]} exd5 {[%emt 0:00:30]} 20. Be2 {[%emt 0:01:30]} Ba4 {[%emt 0:11:30]} 21. Qd2 {[%emt 0:01:30]} Qxd2 {[%emt 0:00:30]} 22. Nxd2 {[%emt 0:00:30]} Nc6 {[%emt 0:05:30]} 23. Nf3 {[%emt 0:03:30]} a6 {[%emt 0:00:30]} 24. Rfe1 {[%emt 0:03:30]} Rfe8 {[%emt 0:03:30]} 25. Bd3 {[%emt 0:01:30]} g6 {[%emt 0:00:30]} 26. Kf1 {[%emt 0:04:05]} Kg7 {[%emt 0:06:30]} 27. Rxe8 {[%emt 0:02:38]} Rxe8 {[%emt 0:00:30]} 28. Re1 {[%emt 0:00:00]} Re6 {[%emt 0:00:00]} 29. Re3 {[%emt 0:03:27]} Kf6 {[%emt 0:04:00]} 30. Ke2 {[%emt 0:02:00]} g5 {[%emt 0:00:30]} 31. h3 {[%emt 0:01:19]} h5 {[%emt 0:00:30]} 32. g4 {[%emt 0:01:48]} Rxe3+ {[%emt 0:05:04]} 33. Kxe3 {[%emt 0:00:25]} hxg4 {[%emt 0:00:11]} 34. hxg4 {[%emt 0:00:05]} Ne5 {[%emt 0:03:02]} 35. Nxe5 {[%emt 0:05:21]} Kxe5 {[%emt 0:00:30]} 36. Bf5 {[%emt 0:00:00]} d4+ {[%emt 0:02:14]} 37. Kd2 {[%emt 0:00:45]} Bc6 {[%emt 0:01:38]} 38. Bc8 {[%emt 0:00:34]} Kd5 {[%emt 0:00:38]} 39. Kd3 {[%emt 0:02:42]} a5 {[%emt 0:00:46]} 40. bxa5 {[%emt 0:00:55]} Bb5+ {[%emt 0:00:41]} 41. Kd2 {[%emt 0:00:39]} Ba6 {[%emt 0:00:12]} 42. Bf5 {[%emt 0:01:06]} Kxc5 {[%emt 0:00:53]} 43. Bd3 {[%emt 0:00:09]} Bxd3 {[%emt 0:00:27]} 44. Kxd3 {[%emt 0:00:06]} Kd5 {[%emt 0:00:31]} 45. a4 {[%emt 0:00:16]} Kc5 {[%emt 0:00:20]} 46. f3 {[%emt 0:00:39]} 0-1

[Event "Turkish Cup 2022"]
[Site "Sakarya"]
[Date "2022.03.26"]
[Round "2.18"]
[White "Buyuk, Eymen Eren"]
[Black "Zor, Alber Kadir"]
[Result "0-1"]
[ECO "D36"]
[WhiteElo "1526"]
[BlackElo "2147"]
[Annotator "ChessBase"]
[PlyCount "88"]
[EventDate "2022.03.25"]
[EventType "swiss"]
[EventCountry "TUR"]
[SourceTitle "playchess.com"]
[Source "ChessBase"]
[SourceQuality "1"]
[TimeControl "5400+30"]

1. d4 {[%emt 0:02:00]} d5 {[%emt 0:01:00]} 2. c4 {[%emt 0:00:30]} e6 {[%emt 0:00:30]} 3. Nc3 {[%emt 0:00:00]} Nf6 {[%emt 0:00:30]} 4. cxd5 {[%emt 0:00:00]} exd5 {[%emt 0:00:30]} 5. Bg5 {[%emt 0:00:30]} c6 {[%emt 0:01:30]} 6. e3 {[%emt 0:01:30]} Be7 {[%emt 0:00:30]} 7. Qc2 {[%emt 0:00:30]} h6 {[%emt 0:00:30]} 8. Bh4 {[%emt 0:00:30]} O-O {[%emt 0:00:30]} 9. Bd3 {[%emt 0:00:30]} Re8 {[%emt 0:00:00]} 10. Nge2 {[%emt 0:00:30]} Nbd7 {[%emt 0:00:00]} 11. O-O {[%emt 0:00:30]} a5 {[%emt 0:00:00]} 12. Rad1 {[%emt 0:13:30]} b5 {[%emt 0:05:00]} 13. f3 {[%emt 0:01:30]} Ba6 {[%emt 0:10:30]} 14. Bf2 {[%emt 0:05:30]} Bf8 {[%emt 0:10:30]} 15. Ng3 {[%emt 0:03:30]} Nb6 {[%emt 0:22:30]} 16. e4 {[%emt 0:12:30]} b4 {[%emt 0:12:30]} 17. Bxa6 {[%emt 0:03:30]} Rxa6 {[%emt 0:00:30]} 18. Nce2 {[%emt 0:00:30]} Nc4 {[%emt 0:04:30]} 19. e5 {[%emt 0:03:30]} Nd7 {[%emt 0:00:00]} 20. b3 {[%emt 0:01:30]} Na3 {[%emt 0:00:00]} 21. Qd3 {[%emt 0:00:30]} Nb5 {[%emt 0:03:30]} 22. f4 {[%emt 0:01:30]} a4 {[%emt 0:03:30]} 23. f5 {[%emt 0:09:30]} axb3 {[%emt 0:06:29]} 24. axb3 {[%emt 0:00:30]} Ra3 {[%emt 0:01:15]} 25. Be3 {[%emt 0:02:30]} Nc3 {[%emt 0:00:55]} 26. Nxc3 {[%emt 0:00:30]} Rxb3 {[%emt 0:00:00]} 27. f6 {[%emt 0:00:30]} Rxc3 {[%emt 0:00:21]} 28. Qd2 {[%emt 0:00:30]} Nxf6 {[%emt 0:05:29]} 29. Bxh6 {[%emt 0:04:30]} Ne4 {[%emt 0:01:01]} 30. Nxe4 {[%emt 0:02:30]} dxe4 {[%emt 0:00:01]} 31. Be3 {[%emt 0:00:30]} Qd5 {[%emt 0:00:49]} 32. Qf2 {[%emt 0:01:30]} Ra8 {[%emt 0:02:04]} 33. Rd2 {[%emt 0:04:30]} b3 {[%emt 0:02:22]} 34. Qe1 {[%emt 0:03:30]} Rc2 {[%emt 0:02:46]} 35. Rxc2 {[%emt 0:02:30]} bxc2 {[%emt 0:00:30]} 36. Qd2 {[%emt 0:00:30]} Ra2 {[%emt 0:01:04]} 37. Qe1 {[%emt 0:02:34]} Qc4 {[%emt 0:01:16]} 38. e6 {[%emt 0:01:22]} Qxe6 {[%emt 0:00:35]} 39. Bc1 {[%emt 0:00:05]} Qd5 {[%emt 0:00:23]} 40. Kh1 {[%emt 0:01:10]} Qxd4 {[%emt 0:00:47]} 41. Rf4 {[%emt 0:00:11]} Ra1 {[%emt 0:00:23]} 42. Rxe4 {[%emt 0:00:07]} Qxe4 {[%emt 0:00:29]} 43. Qxe4 {[%emt 0:00:30]} Rxc1+ {[%emt 0:00:30]} 44. Qe1 {[%emt 0:00:30]} Rxe1# {[%emt 0:00:30]} 0-1

[Event "Turkish Cup 2022"]
[Site "Sakarya"]
[Date "2022.03.26"]
[Round "2.19"]
[White "Bacak, Muhammed Kaan"]
[Black "Caliskan, Soner"]
[Result "0-1"]
[ECO "B23"]
[WhiteElo "2155"]
[BlackElo "1661"]
[Annotator "ChessBase"]
[PlyCount "58"]
[EventDate "2022.03.25"]
[EventType "swiss"]
[EventCountry "TUR"]
[SourceTitle "playchess.com"]
[Source "ChessBase"]
[SourceQuality "1"]
[TimeControl "5400+30"]

1. e4 {[%emt 0:01:00]} c5 {[%emt 0:01:00]} 2. Nc3 {[%emt 0:00:00]} Nc6 {[%emt 0:00:30]} 3. Bb5 {[%emt 0:00:00]} d6 {[%emt 0:01:30]} 4. f4 {[%emt 0:01:30]} a6 {[%emt 0:02:30]} 5. Bxc6+ {[%emt 0:00:30]} bxc6 {[%emt 0:00:00]} 6. Nf3 {[%emt 0:01:30]} Nf6 {[%emt 0:02:00]} 7. O-O {[%emt 0:01:30]} g6 {[%emt 0:13:30]} 8. d3 {[%emt 0:00:30]} Bg7 {[%emt 0:00:30]} 9. Qe1 {[%emt 0:01:30]} Rb8 {[%emt 0:03:30]} 10. e5 {[%emt 0:07:30]} Nd5 {[%emt 0:04:30]} 11. exd6 {[%emt 0:02:30]} Nxc3 {[%emt 0:09:30]} 12. bxc3 {[%emt 0:00:30]} Qxd6 {[%emt 0:00:30]} 13. Ne5 {[%emt 0:02:30]} O-O {[%emt 0:01:30]} 14. Ba3 {[%emt 0:06:30]} Be6 {[%emt 0:16:30]} 15. Qe3 {[%emt 0:03:30]} Rb5 {[%emt 0:04:30]} 16. c4 {[%emt 0:07:30]} Ra5 {[%emt 0:02:30]} 17. Bb2 {[%emt 0:02:30]} Rb8 {[%emt 0:02:30]} 18. Qc1 {[%emt 0:15:30]} Bh6 {[%emt 0:09:30]} 19. a4 {[%emt 0:05:30]} f6 {[%emt 0:06:49]} 20. Bc3 {[%emt 0:00:30]} Rb4 {[%emt 0:05:16]} 21. Bxb4 {[%emt 0:04:30]} cxb4 {[%emt 0:00:26]} 22. Nf3 {[%emt 0:00:30]} Bxf4 {[%emt 0:00:47]} 23. Qe1 {[%emt 0:00:30]} Bg4 {[%emt 0:01:28]} 24. Qf2 {[%emt 0:02:30]} Bxf3 {[%emt 0:00:24]} 25. g3 {[%emt 0:07:30]} Be5 {[%emt 0:00:58]} 26. Qxf3 {[%emt 0:00:30]} Bxa1 {[%emt 0:00:08]} 27. Rxa1 {[%emt 0:00:30]} Qd4+ {[%emt 0:00:30]} 28. Kg2 {[%emt 0:00:30]} Qxa1 {[%emt 0:00:30]} 29. Qxc6 {[%emt 0:00:00]} Qxa4 {[%emt 0:00:00]} 0-1